bitfinex-derivatives/quotes_SOLF0:USTF0_20241107
["timestamp","ask_amount","ask_price","bid_price","bid_amount"]
[1731003785462,2.5501,195.89,195.8,2.5146]
[1731003785667,36.71342889,195.96,195.8,2.5146]
[1731003785874,36.71342889,195.96,195.8,5.0657]
[1731003786156,36.71342889,195.93,195.8,2.5146]
[1731003786359,2.5505,195.86,195.77,5.74]
[1731003786561,2.5505,195.86,195.76,36.71342889]
[1731003786863,36.71342889,195.93,195.76,36.71342889]
[1731003787260,36.71342889,195.93,195.79,36.71342889]
[1731003787858,2.5502,195.88,195.79,36.71342889]
[1731003788059,36.71342889,195.93,195.79,36.71342889]
[1731003789556,36.71342889,195.96,195.79,36.71342889]
[1731003789861,2.5504,195.86,195.79,36.71342889]
[1731003790262,2.5507,195.84,195.76,36.71342889]
[1731003790458,36.71342889,195.93,195.76,36.71342889]
[1731003790867,2.5508,195.83,195.76,36.71342889]
[1731003791962,36.71342889,195.89,195.76,36.71342889]
[1731003791963,2.5509,195.82,195.76,36.71342889]
[1731003794458,2.5512,195.8,195.73,39.26552889]
[1731003794966,2.5516,195.77,195.73,36.71342889]
[1731003795270,2.5516,195.77,195.7,2.5393]
[1731003795271,36.71342889,195.83,195.7,2.5393]
[1731003795461,52.05342889,195.86,195.7,1.2973]
[1731003796268,2.5518,195.75,195.7,1.2973]
[1731003796771,2.5515,195.78,195.71,2.5523]
[1731003797066,36.71342889,195.86,195.71,2.5523]
[1731003797473,36.71342889,195.86,195.7,1.2973]
[1731003797768,36.71342889,195.89,195.73,36.71342889]
[1731003798073,15.34,195.97,195.79,2.5513]
[1731003798074,42.19342889,195.93,195.79,2.5513]
[1731003798769,2.5506,195.85,195.79,2.5513]
[1731003799273,42.19342889,195.93,195.76,42.19342889]
[1731003799467,42.19342889,195.93,195.76,39.26502889]
[1731003799468,2.5511,195.81,195.76,39.26502889]
[1731003799871,2.5511,195.81,195.76,36.71342889]
[1731003800174,2.5512,195.8,195.76,36.71342889]
[1731003800374,36.71342889,195.9,195.76,36.71342889]
[1731003800674,36.71342889,195.9,195.76,39.26512889]
[1731003801068,2.5512,195.8,195.76,36.71342889]
[1731003802375,2.5509,195.83,195.76,39.26502889]
[1731003802577,36.71342889,195.93,195.77,1.2972]
[1731003803072,2.5501,195.89,195.77,3.8487]
[1731003803281,36.71342889,195.93,195.77,1.2972]
[1731003803667,2.5507,195.84,195.78,2.5513]
[1731003804275,2.5507,195.84,195.77,1.2972]
[1731003804478,36.71342889,195.96,195.82,36.71342889]
[1731003804673,36.71342889,195.99,195.82,36.71342889]
[1731003804868,36.71342889,195.99,195.83,1.207]
[1731003805269,36.71342889,195.99,195.86,36.71342889]
[1731003805478,2.5498,195.91,195.86,36.71342889]
[1731003805878,36.71342889,195.99,195.86,36.71342889]
[1731003806875,36.71342889,195.99,195.83,3.7577]
[1731003807070,36.71342889,195.96,195.83,1.207]
[1731003807276,36.71342889,195.93,195.79,5.48]
[1731003807476,36.71342889,195.93,195.79,8.0313]
[1731003807877,2.5507,195.84,195.79,8.0313]
[1731003808073,2.5507,195.84,195.8,2.5511]
[1731003808277,36.71342889,195.93,195.8,2.5511]
[1731003808485,2.5506,195.85,195.8,2.5511]
[1731003808675,36.71342889,195.93,195.8,2.5511]
[1731003809076,36.71342889,195.93,195.79,36.71342889]
[1731003809382,36.71342889,195.9,195.76,41.93342889]
[1731003809781,36.71342889,195.9,195.7,1.2303]
[1731003809978,36.71342889,195.9,195.72,36.71342889]
[1731003810497,2.5513,195.79,195.74,2.5518]
[1731003811378,36.71342889,195.9,195.74,2.5518]
[1731003811583,41.93342889,195.93,195.78,36.71342889]
[1731003812783,2.5506,195.84,195.79,2.5512]
[1731003812988,41.93342889,195.93,195.78,36.71342889]
[1731003813187,36.71342889,195.9,195.75,36.71342889]
[1731003813384,2.5512,195.8,195.75,39.26512889]
[1731003813889,2.5513,195.8,195.75,36.71342889]
[1731003814790,2.5513,195.8,195.75,39.26512889]
[1731003815183,36.71342889,195.87,195.7,2.421]
[1731003815378,22.55890883,195.84,195.7,2.421]
[1731003815898,2.5517,195.76,195.72,2.5522]
[1731003817283,22.55890883,195.84,195.7,24.97990883]
[1731003817583,5.22,195.87,195.62,23.79280883]
[1731003817584,22.55890883,195.8,195.62,23.79280883]
[1731003817787,22.55890883,195.8,195.63,2.4459]
[1731003817989,22.55890883,195.8,195.63,4.9993]
[1731003818784,2.5527,195.69,195.63,4.9993]
[1731003818988,22.55890883,195.77,195.63,2.4459]
[1731003819386,36.65143867,195.76,195.63,2.4459]
[1731003819589,2.5528,195.68,195.63,39.09733867]
[1731003820088,2.5528,195.68,195.63,41.65063867]
[1731003820285,2.5526,195.69,195.63,41.65063867]
[1731003820781,36.65143867,195.76,195.63,41.65063867]
[1731003820986,41.87143867,195.79,195.64,2.5532]
[1731003821493,41.87143867,195.79,195.66,39.20433867]
[1731003821494,5.22,195.79,195.66,39.20433867]
[1731003822397,2.5525,195.71,195.66,39.20433867]
[1731003822599,5.22,195.79,195.66,39.20433867]
[1731003822795,41.87143867,195.79,195.63,39.09733867]
[1731003823406,2.5529,195.67,195.63,41.65063867]
[1731003824288,36.65143867,195.76,195.63,2.4459]
[1731003824492,2.5531,195.66,195.63,2.4459]
[1731003824694,36.65143867,195.76,195.63,2.4459]
[1731003824888,36.65143867,195.73,195.63,2.4459]
[1731003825201,2.5532,195.64,195.63,2.4459]
[1731003825591,36.65143867,195.73,195.58,2.554]
[1731003825893,2.5535,195.62,195.57,36.65143867]
[1731003826793,41.61143867,195.73,195.55,8.531]
[1731003826794,36.65143867,195.66,195.55,3.571]
[1731003827591,2.5541,195.58,195.55,3.571]
[1731003828202,2.5542,195.57,195.55,2.3882]
[1731003828399,36.65143867,195.66,195.55,2.3882]
[1731003829898,2.5539,195.59,195.55,2.3882]
[1731003830498,2.5539,195.59,195.52,7.5147]
[1731003830499,2.554,195.59,195.52,7.5147]
[1731003830800,36.65143867,195.66,195.49,41.61143867]
[1731003830991,2.5536,195.61,195.53,2.5547]
[1731003831187,36.65143867,195.66,195.53,2.5547]
[1731003831498,36.65143867,195.66,195.49,41.61143867]
[1731003832194,36.65143867,195.66,195.54,2.5545]
[1731003832902,2.554,195.59,195.54,2.5545]
[1731003835293,2.5536,195.62,195.57,2.554]
[1731003836199,36.65143867,195.69,195.57,2.554]
[1731003836403,2.5536,195.61,195.57,2.554]
[1731003838805,36.65143867,195.69,195.55,2.5824]
[1731003839000,36.65143867,195.69,195.55,5.1367]
[1731003839412,22.57171058,195.68,195.55,5.1367]
[1731003839906,22.57171058,195.68,195.55,2.5824]
[1731003840510,2.5543,195.56,195.55,2.5824]
[1731003842013,2.5535,195.62,195.55,2.5824]
[1731003842205,27.67721058,195.69,195.55,2.5824]
[1731003842610,22.57171058,195.69,195.55,2.5824]
[1731003842910,2.5536,195.62,195.58,2.554]
[1731003843608,2.5536,195.61,195.58,2.554]
[1731003843801,2.5536,195.61,195.55,2.5824]
[1731003844406,22.57171058,195.69,195.58,2.5539]
[1731003844611,2.5532,195.64,195.56,22.57171058]
[1731003844806,22.57171058,195.72,195.56,22.57171058]
[1731003845111,2.5531,195.66,195.61,2.5536]
[1731003845313,2.5531,195.66,195.59,4.7]
[1731003845709,22.57171058,195.72,195.6,22.57171058]
[1731003845915,22.57171058,195.76,195.63,22.57171058]
[1731003846416,2.5524,195.71,195.66,2.553]
[1731003846909,2.5522,195.73,195.67,2.5528]
[1731003847411,2.5522,195.73,195.66,27.27171058]
[1731003847608,27.27171058,195.82,195.67,1.2389]
[1731003847807,27.27171058,195.82,195.67,2.4658]
[1731003848009,27.27171058,195.82,195.71,2.5522]
[1731003848205,27.27171058,195.82,195.69,22.57171058]
[1731003848206,22.57171058,195.82,195.69,22.57171058]
[1731003848511,64.49191058,195.89,195.73,2.552]
[1731003848512,22.57171058,195.85,195.73,2.552]
[1731003849209,2.5516,195.77,195.72,2.5521]
[1731003849411,2.5516,195.77,195.69,22.57171058]
[1731003849619,22.57171058,195.85,195.72,22.57171058]
[1731003849811,4.7,195.87,195.72,22.57171058]
[1731003850013,4.7,195.87,195.74,2.5519]
[1731003850205,22.57171058,195.88,195.74,2.5519]
[1731003851115,2.5517,195.76,195.73,4.7]
[1731003852113,22.57171058,195.85,195.7,2.5524]
[1731003852313,22.57171058,195.85,195.69,27.27171058]
[1731003853209,2.5511,195.81,195.69,29.82431058]
[1731003853510,22.57171058,195.85,195.69,29.82431058]
[1731003854711,2.5511,195.81,195.7,2.5524]
[1731003854908,22.57171058,195.85,195.7,2.5524]
[1731003856011,2.5519,195.75,195.7,2.5524]
[1731003856409,22.57171058,195.81,195.69,27.27171058]
[1731003856609,22.57171058,195.81,195.67,3.6833]
[1731003857516,22.57171058,195.78,195.67,2.4658]
[1731003857717,22.57171058,195.78,195.65,22.57171058]
[1731003858114,2.5527,195.68,195.65,22.57171058]
[1731003858409,22.57171058,195.78,195.63,6.9932]
[1731003858617,2.552,195.74,195.63,6.9932]
[1731003858919,22.57171058,195.78,195.63,6.9932]
[1731003859223,2.5528,195.68,195.63,6.9932]
[1731003859424,2.5528,195.68,195.63,4.44]
[1731003860123,2.5528,195.68,195.63,6.9933]
[1731003860620,2.5528,195.68,195.62,22.57171058]
[1731003860621,22.57171058,195.74,195.61,3.7783]
[1731003860821,22.57171058,195.78,195.61,1.2247]
[1731003861016,2.5524,195.71,195.63,22.57171058]
[1731003861217,22.57171058,195.78,195.65,2.553]
[1731003861719,22.57171058,195.78,195.63,22.57171058]
[1731003861920,22.57171058,195.78,195.66,2.5529]
[1731003862121,2.5524,195.71,195.66,2.5529]
[1731003862523,22.57171058,195.78,195.67,2.5527]
[1731003862714,22.57171058,195.81,195.66,4.44]
[1731003862919,22.57171058,195.81,195.67,23.81601058]
[1731003863125,22.57171058,195.81,195.67,24.99821058]
[1731003863824,2.5519,195.75,195.7,2.5524]
[1731003864217,22.57171058,195.81,195.7,2.5524]
[1731003864419,27.01171058,195.85,195.67,24.99821058]
[1731003864616,2.51038617,195.99,195.73,22.57171058]
[1731003864819,2.5513,195.79,195.74,4.44]
[1731003865021,22.57171058,195.86,195.74,4.44]
[1731003865222,22.57171058,195.86,195.71,2.5523]
[1731003865528,22.57171058,195.86,195.72,4.44]
[1731003865917,2.5517,195.76,195.72,4.44]
[1731003866126,2.5517,195.76,195.72,6.9922]
[1731003867228,22.57171058,195.86,195.72,6.9922]
[1731003867617,22.57171058,195.86,195.7,6.9924]
[1731003867818,2.551,195.82,195.7,4.44]
[1731003868020,22.57171058,195.86,195.7,4.44]
[1731003868328,25.09295679,195.89,195.7,4.44]
[1731003868329,2.5521,195.73,195.7,4.44]
[1731003868821,22.57171058,195.83,195.67,6.8665]
[1731003869018,5.1019,195.82,195.67,6.8665]
[1731003869432,2.5524,195.71,195.67,20.97091698]
[1731003869625,2.5524,195.71,195.67,16.53091698]
[1731003870129,2.5524,195.71,195.67,19.08371698]
[1731003870625,14.10441698,195.78,195.67,16.53091698]
[1731003870824,14.10441698,195.73,195.55,36.82]
[1731003871128,14.10441698,195.73,195.63,14.10441698]
[1731003871329,22.55538812,195.75,195.62,4.2]
[1731003871924,2.5531,195.66,195.61,7.8602]
[1731003872427,22.55538812,195.75,195.61,7.8602]
[1731003872830,2.5523,195.71,195.61,7.8602]
[1731003873031,4.2,195.76,195.61,7.8602]
[1731003873328,22.55538812,195.75,195.61,7.8602]
[1731003873528,2.5532,195.65,195.61,7.8602]
[1731003873920,22.55538812,195.75,195.61,7.8602]
[1731003874323,22.55538812,195.75,195.61,1.2167]
[1731003875629,2.5532,195.65,195.61,1.2167]
[1731003875932,22.55538812,195.75,195.61,1.2167]
[1731003876131,4.2,195.74,195.61,1.2167]
[1731003876338,2.5533,195.64,195.61,1.2167]
[1731003876634,2.5533,195.64,195.56,2.4649]
[1731003876635,22.55538812,195.72,195.57,22.55538812]
[1731003877435,22.55538812,195.69,195.53,1.1822]
[1731003878043,2.5539,195.59,195.54,2.5545]
[1731003878739,2.5539,195.59,195.55,2.5544]
[1731003879939,2.5538,195.61,195.56,2.5543]
[1731003880236,4.2,195.67,195.53,1.1822]
[1731003880438,2.5534,195.63,195.53,1.1822]
[1731003880633,22.55538812,195.69,195.56,2.5542]
[1731003880839,22.55538812,195.69,195.55,22.55538812]
[1731003881445,2.5535,195.63,195.58,2.554]
[1731003882144,4.2,195.71,195.59,2.5538]
[1731003882845,2.5533,195.64,195.59,2.5538]
[1731003883047,4.2,195.71,195.59,2.5538]
[1731003883639,2.5533,195.64,195.59,2.5538]
[1731003884839,4.2,195.71,195.55,22.55538812]
[1731003884840,2.5537,195.61,195.56,2.5543]
[1731003885043,22.55538812,195.69,195.56,2.5543]
[1731003885444,2.5538,195.6,195.56,2.5543]
[1731003886036,22.55538812,195.69,195.55,4.2]
[1731003886343,5.1055,195.68,195.55,4.2]
[1731003886842,2.554,195.59,195.55,4.2]
[1731003887641,2.554,195.59,195.54,5.0459]
[1731003887847,22.55538812,195.66,195.54,5.1886]
[1731003888448,2.5541,195.58,195.54,5.1886]
[1731003888948,22.55538812,195.66,195.54,5.1886]
[1731003889343,22.55538812,195.66,195.53,1.1822]
[1731003889542,22.55538812,195.63,195.49,22.55538812]
[1731003889848,3.96,195.62,195.49,22.55538812]
[1731003890149,2.5548,195.53,195.46,26.51538812]
[1731003890336,2.5548,195.53,195.46,22.55538812]
[1731003890542,17.42209719,195.62,195.46,22.55538812]
[1731003891047,10.89642783,195.62,195.47,3.96]
[1731003891349,3.96,195.62,195.47,3.96]
[1731003891944,2.5545,195.55,195.49,2.5551]
[1731003892145,3.96,195.62,195.49,2.5551]
[1731003892948,3.96,195.62,195.47,2.5554]
[1731003893340,3.96,195.62,195.47,16.67427272]
[1731003893341,2.555,195.51,195.47,16.67427272]
[1731003894740,2.5551,195.5,195.45,5.018]
[1731003894946,14.11887272,195.54,195.45,2.4623]
[1731003895349,2.5554,195.48,195.45,2.4623]
[1731003896350,2.5554,195.48,195.44,16.67467272]
[1731003896851,2.5557,195.45,195.44,14.11887272]
[1731003897153,14.11887272,195.54,195.42,14.11887272]
[1731003897748,2.5556,195.47,195.42,16.67487272]
[1731003898051,14.11887272,195.5,195.4,14.11887272]
[1731003898246,2.5558,195.45,195.4,14.11887272]
[1731003899753,2.5558,195.45,195.41,2.5562]
[1731003900152,2.5559,195.44,195.39,14.11887272]
[1731003900454,14.11887272,195.5,195.36,3.96]
[1731003900654,2.5557,195.45,195.4,14.11887272]
[1731003901645,2.5557,195.45,195.41,2.5562]
[1731003902552,2.5556,195.46,195.41,2.5562]
[1731003903251,2.5551,195.5,195.41,2.5562]
[1731003903551,14.11887272,195.53,195.43,14.11887272]
[1731003903756,14.11887272,195.55,195.45,14.11887272]
[1731003904253,14.11887272,195.55,195.46,1.214]
[1731003904752,2.5548,195.52,195.48,2.5553]
[1731003904953,14.11887272,195.55,195.46,1.214]
[1731003905153,14.11887272,195.53,195.42,14.11887272]
[1731003905350,2.5555,195.47,195.42,16.67497272]
[1731003905743,14.11887272,195.53,195.42,14.11887272]
[1731003905943,14.11887272,195.55,195.47,2.5554]
[1731003906153,14.11887272,195.55,195.45,14.11887272]
[1731003906551,18.07887272,195.58,195.49,2.5552]
[1731003906748,14.11887272,195.58,195.49,2.5552]
[1731003907554,2.52880732,195.66,195.53,2.5547]
[1731003907749,14.11887272,195.61,195.5,14.11887272]
[1731003908048,2.5543,195.56,195.5,16.67377272]
[1731003908448,14.11887272,195.57,195.48,5.2002]
[1731003908846,14.11887272,195.57,195.48,3.96]
[1731003909153,14.11887272,195.54,195.43,14.11887272]
[1731003909350,2.5553,195.49,195.43,16.67477272]
[1731003909549,2.5553,195.49,195.43,2.5559]
[1731003909747,2.5553,195.49,195.41,20.60497272]
[1731003909949,14.11887272,195.54,195.41,20.60497272]
[1731003910148,2.5555,195.48,195.41,20.60497272]
[1731003910353,2.5555,195.48,195.43,2.5559]
[1731003911053,2.5555,195.47,195.42,2.5561]
[1731003913556,14.11887272,195.55,195.44,2.5558]
[1731003914053,14.11887272,195.55,195.43,14.11887272]
[1731003914251,14.11887272,195.55,195.47,2.5554]
[1731003914554,17.83887272,195.58,195.46,14.11887272]
[1731003914746,2.5547,195.53,195.48,2.5552]
[1731003915054,14.11887272,195.55,195.46,14.11887272]
[1731003915252,2.5551,195.5,195.46,16.67447272]
[1731003915656,14.11887272,195.55,195.46,16.67447272]
[1731003916052,14.11887272,195.51,195.44,1.1887]
[1731003916457,3.72,195.58,195.44,1.1887]
[1731003916458,14.11887272,195.54,195.44,1.1887]
[1731003917456,14.11887272,195.54,195.44,3.7445]
[1731003918260,14.11887272,195.54,195.44,1.1887]
[1731003918459,5.1084,195.57,195.44,1.1887]
[1731003918460,14.11887272,195.51,195.44,1.1887]
[1731003918850,2.5556,195.46,195.44,1.1887]
[1731003919057,2.5556,195.46,195.41,5.0823]
[1731003919848,2.5556,195.46,195.42,2.5561]
[1731003920051,14.11887272,195.51,195.41,2.5261]
[1731003920260,2.5558,195.45,195.41,2.5261]
[1731003920458,14.11887272,195.48,195.34,1.2492]
[1731003920655,14.11887272,195.48,195.35,6.2065]
[1731003920853,2.556,195.43,195.39,2.5564]
[1731003921251,2.556,195.43,195.38,14.11887272]
[1731003921456,14.11887272,195.48,195.36,14.11887272]
[1731003921853,14.11887272,195.48,195.36,17.83887272]
[1731003922257,14.11887272,195.48,195.39,2.5564]
[1731003922658,14.11887272,195.39,195.09,1.0]
[1731003922961,14.11887272,195.39,195.25,14.11887272]
[1731003922962,2.5574,195.33,195.25,14.11887272]
[1731003923147,2.5574,195.33,195.26,1.3337]
[1731003923551,2.5574,195.33,195.26,3.8918]
[1731003924052,14.11887272,195.39,195.26,1.3337]
[1731003924456,14.11887272,195.36,195.26,1.3337]
[1731003924649,14.11887272,195.36,195.24,2.5918]
[1731003924852,14.11887272,195.34,195.24,2.5918]
[1731003926460,2.5581,195.28,195.24,2.5918]
[1731003926656,14.11887272,195.34,195.24,2.5918]
[1731003927762,2.5576,195.31,195.24,5.1502]
[1731003928061,2.5576,195.31,195.24,19.26907272]
[1731003928765,14.11887272,195.34,195.24,19.26907272]
[1731003928956,2.5576,195.31,195.24,19.26907272]
[1731003930057,2.5578,195.3,195.24,19.26907272]
[1731003930266,14.11887272,195.34,195.25,2.5582]
[1731003930464,2.5577,195.31,195.25,2.5582]
[1731003930864,14.11887272,195.34,195.24,16.71067272]
[1731003931064,2.5577,195.3,195.24,19.26907272]
[1731003931666,2.5577,195.3,195.24,5.1502]
[1731003931863,14.11887272,195.34,195.27,2.5581]
[1731003931864,2.5573,195.34,195.27,2.5581]
[1731003932064,17.85887272,195.38,195.27,2.5581]
[1731003932263,17.85887272,195.38,195.26,14.11887272]
[1731003932460,2.5569,195.36,195.3,2.5576]
[1731003933764,2.5569,195.36,195.29,2.5577]
[1731003933961,14.11887272,195.38,195.27,1.2221]
[1731003934576,2.5572,195.34,195.28,2.5579]
[1731003934873,14.11887272,195.38,195.27,1.2221]
[1731003935667,2.5571,195.35,195.3,2.5576]
[1731003935861,3.74,195.42,195.27,1.2221]
[1731003936077,14.11887272,195.39,195.27,1.2221]
[1731003936973,2.5568,195.37,195.27,15.34097272]
[1731003937175,14.11887272,195.39,195.27,1.2221]
[1731003937375,2.557,195.36,195.27,15.34097272]
[1731003937770,2.5567,195.38,195.27,15.34097272]
[1731003937967,14.11887272,195.39,195.27,1.2221]
[1731003938175,14.11887272,195.41,195.3,14.11887272]
[1731003938474,2.5566,195.39,195.34,2.5571]
[1731003938869,14.11887272,195.41,195.35,1.2517]
[1731003939069,2.5564,195.4,195.35,3.8087]
[1731003939769,14.11887272,195.41,195.35,1.2517]
[1731003940376,2.5569,195.36,195.31,3.74]
[1731003941574,2.5569,195.36,195.31,6.2975]
[1731003942175,2.5568,195.37,195.32,2.5574]
[1731003942379,14.11887272,195.38,195.31,3.74]
[1731003942573,3.74,195.46,195.31,3.74]
[1731003942574,14.11887272,195.41,195.31,3.74]
[1731003942774,2.5568,195.37,195.33,2.5573]
[1731003943576,2.5568,195.37,195.31,3.74]
[1731003943777,2.5568,195.37,195.32,2.5574]
[1731003944477,2.5566,195.39,195.32,2.5574]
[1731003944672,14.11887272,195.41,195.32,2.5574]
[1731003945075,2.5569,195.37,195.32,2.5574]
[1731003946484,2.5569,195.36,195.32,2.5574]
[1731003946984,2.56518674,195.49,195.34,14.11887272]
[1731003947189,2.58689282,195.61,195.4,14.11887272]
[1731003947489,2.58689282,195.61,195.35,1.333]
[1731003947490,2.5547,195.53,195.47,2.5554]
[1731003947787,14.11887272,195.52,195.44,3.74]
[1731003947994,14.11887272,195.52,195.43,3.74]
[1731003948391,14.11887272,195.49,195.41,3.74]
[1731003951192,2.5538,195.61,195.49,17.85887272]
[1731003951399,14.11887272,195.63,195.52,14.11887272]
[1731003951784,14.11887272,195.63,195.57,2.5541]
[1731003951989,15.41527272,195.66,195.54,14.11887272]
[1731003952184,2.55594428,195.71,195.55,3.74]
[1731003952396,2.553,195.66,195.58,2.554]
[1731003952698,2.553,195.66,195.57,14.11887272]
[1731003952892,2.553,195.66,195.58,3.72]
[1731003953291,2.553,195.66,195.6,2.5538]
[1731003953694,2.553,195.66,195.58,3.72]
[1731003953897,2.553,195.66,195.59,2.5538]
[1731003954204,1.2542,195.7,195.59,3.72]
[1731003955195,1.2542,195.7,195.53,1.2681]
[1731003955196,22.55968934,195.69,195.57,3.72]
[1731003955891,2.5534,195.63,195.57,3.72]
[1731003956495,2.5532,195.65,195.58,2.554]
[1731003957193,2.5529,195.67,195.6,2.5537]
[1731003957498,22.55968934,195.69,195.6,2.5537]
[1731003957801,2.5531,195.65,195.58,2.5539]
[1731003958498,22.55968934,195.69,195.58,2.5539]
[1731003958695,2.5533,195.64,195.58,2.5539]
[1731003959096,18.82964314,195.74,195.62,22.55968934]
[1731003959295,18.82964314,195.81,195.66,22.55968934]
[1731003959806,2.5515,195.77,195.7,2.5524]
[1731003960098,22.55968934,195.83,195.71,6.2722]
[1731003960099,2.5514,195.78,195.71,6.2722]
[1731003960303,18.82964314,195.82,195.71,6.2722]
[1731003960497,18.82964314,195.79,195.71,3.72]
[1731003960799,2.5513,195.79,195.71,3.72]
[1731003961097,18.82964314,195.83,195.63,1.207]
[1731003961293,22.55968934,195.8,195.64,3.72]
[1731003961494,18.82964314,195.83,195.64,3.72]
[1731003961693,22.55968934,195.81,195.64,3.72]
[1731003962090,22.55968934,195.81,195.68,2.5527]
[1731003962300,41.38933248,195.81,195.68,2.5527]
[1731003962695,22.55968934,195.81,195.68,2.5527]
[1731003963604,41.38933248,195.81,195.68,2.5527]
[1731003963799,2.5518,195.75,195.68,2.5527]
[1731003964703,22.55968934,195.81,195.68,2.5527]
[1731003964704,2.5519,195.74,195.68,2.5527]
[1731003966199,22.55968934,195.81,195.68,2.5527]
[1731003966801,2.5515,195.78,195.68,2.5527]
[1731003967098,22.55968934,195.81,195.67,2.5528]
[1731003967699,2.5522,195.73,195.67,2.5528]
[1731003967903,2.5522,195.73,195.66,2.5529]
[1731003968301,2.5526,195.7,195.65,2.5841]
[1731003968496,22.55968934,195.78,195.65,1.2661]
[1731003968703,2.52853198,195.77,195.65,1.2661]
[1731003969108,2.5529,195.67,195.63,3.72]
[1731003970801,2.5531,195.66,195.6,22.55968934]
[1731003971409,2.5531,195.66,195.61,2.5536]
[1731003971602,2.5532,195.65,195.59,3.72]
[1731003972207,2.5532,195.65,195.6,2.5537]
[1731003972401,3.72,195.73,195.59,3.72]
[1731003972596,2.5533,195.64,195.59,3.72]
[1731003972796,2.5533,195.64,195.6,2.5537]
[1731003973008,2.5531,195.65,195.6,2.5537]
[1731003973509,3.72,195.73,195.62,2.5535]
[1731003973705,2.5529,195.67,195.62,2.5535]
[1731003974097,3.72,195.73,195.62,2.5535]
[1731003974703,2.5529,195.67,195.62,2.5535]
[1731003975900,2.553,195.66,195.61,2.5536]
[1731003977604,2.5532,195.65,195.61,2.5536]
[1731003978301,2.5532,195.65,195.6,14.09844077]
[1731003978506,2.5532,195.64,195.6,2.5537]
[1731003980610,2.5534,195.63,195.59,6.3339]
[1731003981000,14.09844077,195.65,195.51,1.2046]
[1731003981205,14.09844077,195.65,195.56,3.78]
[1731003981405,2.5536,195.61,195.56,3.78]
[1731003981804,2.5536,195.61,195.57,2.5541]
[1731003982005,14.09844077,195.68,195.57,14.09844077]
[1731003982204,14.09844077,195.71,195.59,14.09844077]
[1731003982409,2.553,195.67,195.59,14.09844077]
[1731003982612,18.82964314,195.74,195.65,14.09844077]
[1731003982806,2.3516,195.75,195.67,2.5527]
[1731003983009,2.552,195.74,195.67,2.5527]
[1731003983217,1.2519,195.76,195.67,2.5527]
[1731003983510,1.2519,195.76,195.68,2.5527]
[1731003983710,1.2519,195.76,195.65,14.09844077]
[1731003983711,2.5525,195.7,195.65,14.09844077]
[1731003983911,14.09844077,195.75,195.65,14.09844077]
[1731003984117,14.09844077,195.75,195.66,2.5529]
[1731003984315,2.5524,195.71,195.66,2.5529]
[1731003984517,2.5524,195.71,195.65,14.09844077]
[1731003984817,2.5522,195.72,195.67,2.5528]
[1731003985812,2.5521,195.74,195.68,2.5527]
[1731003986005,18.82964314,195.73,195.68,2.5527]
[1731003986209,18.82964314,195.73,195.67,14.09844077]
[1731003986411,18.82964314,195.7,195.69,2.5526]
[1731003986714,18.82964314,195.7,195.67,14.09844077]
[1731003987017,18.82964314,195.7,195.68,2.5526]
[1731003987614,18.82964314,195.7,195.67,2.5528]
[1731003987812,18.82964314,195.69,195.65,14.09844077]
[1731003988214,2.5526,195.7,195.65,16.65144077]
[1731003988618,18.82964314,195.72,195.65,16.65144077]
[1731003988921,2.5527,195.69,195.65,16.65144077]
[1731003990511,18.82964314,195.72,195.65,14.09844077]
[1731003990720,18.82964314,195.71,195.65,14.09844077]
[1731003990917,2.553,195.67,195.63,2.5534]
[1731003991111,18.82964314,195.7,195.56,2.49813322]
[1731003991316,18.82964314,195.7,195.6,14.09844077]
[1731003991512,2.5531,195.65,195.6,16.65214077]
[1731003991718,18.82964314,195.7,195.6,14.09844077]
[1731003992215,18.82964314,195.7,195.57,3.78]
[1731003992216,18.82964314,195.7,195.63,14.09844077]
[1731003992423,28.24446471,195.74,195.65,14.09844077]
[1731003992620,1.2519,195.76,195.65,14.09844077]
[1731003992621,2.5521,195.73,195.67,2.5528]
[1731003992920,1.2519,195.76,195.67,2.5528]
[1731003993116,1.2519,195.76,195.65,15.42404077]